Cogmind - Beta 13 @@@ ROGUE MODE // 2024.04.09 @ 21:49:32 Player: GR4C3 Result: Destroyed by Y-64 Sentinel with Wave Gun Performance ------------- Evolutions (3) 1500 Regions Visited (5) 1000 Robots Destroyed (79) 395 Value Destroyed (2641) 2641 Prototype IDs (3) 60 Alien Tech Used (0) 0 Bonus (0) 0 TOTAL SCORE: 5596 Bonus ------- None Cogmind --------- Core Integrity 0/700 Matter 75/300 Energy 70/100 System Corruption 15% Temperature Cool (9) Movement Walking (330) Ox3 Location -7/Lower Caves Parts ------- > --- POWER (2) -------- (None) > --- PROPULSION (4) --- Aluminum Leg > --- UTILITY (4) ------ Improved Heat Sink Improved Cooling System Improved Medium Armor Plating Improved Medium Armor Plating > --- WEAPON (3) ------- Gauss Cannon Gauss Cannon Chainsword > --- INVENTORY (5) ---- Heart of Steel Heavy Laser Heavy Missile Launcher Peak State ------------ > --- POWER ------------ Nuclear Core > --- PROPULSION ------- Aluminum Leg Aluminum Leg Aluminum Leg Aluminum Leg > --- UTILITY ---------- Improved Heat Sink Improved Cooling System Improved Medium Armor Plating Improved Medium Armor Plating > --- WEAPON ----------- Gauss Cannon Gauss Cannon Chainsword > --- INVENTORY -------- Heart of Steel Heavy Laser Heavy Missile Launcher [Rating: 37] Favorites ----------- Power Cooled Ion Engine Engine Cooled Ion Engine Power Core Light Nuclear Core Propulsion Aluminum Leg Treads Light Treads Leg Aluminum Leg Hover Unit Improved Hover Unit Flight Unit Cesium-ion Thruster Utility Improved Medium Armor Plating Device Improved Heat Sink Storage Medium Storage Unit Processor Improved Terrain Scan Processor Protection Improved Medium Armor Plating Weapon Gauss Cannon Energy Gun Beam Rifle Energy Cannon Heavy Ion Cannon Ballistic Gun Improved Assault Rifle Ballistic Cannon Gauss Cannon Launcher Heavy Missile Launcher Slashing Weapon Chainsword Build | -11 -10 -9 -8 -7 -7 ------- Run | Yrd Mat Mat Mat Fac Low Slots Evolved 6 | . . 2 2 2 . Power 1 | . . . 1 . . Propulsion 2 | . . 1 1 . . Utility 2 | . . 1 . 1 . Weapon 1 | . . . . 1 . Parts Attached 104 | 5 6 17 24 45 7 Power 16 | 1 . 2 7 5 1 Engine 11 | 1 . 2 5 3 . Core 5 | . . . 2 2 1 Reactor . | . . . . . . Propulsion 23 | 2 . 6 2 12 1 Treads 3 | . . 2 . 1 . Leg 18 | 2 . 4 1 10 1 Wheel . | . . . . . . Hover 1 | . . . 1 . . Flight 1 | . . . . 1 . Utility 16 | . 2 3 2 8 1 Device 9 | . . 2 1 5 1 Storage 3 | . 2 1 . . . Processor 2 | . . . 1 1 . Hackware . | . . . . . . Protection 2 | . . . . 2 . Artifact . | . . . . . . Weapon 49 | 2 4 6 13 20 4 Energy Gun 16 | 1 1 2 3 9 . Energy Cannon 9 | . . . 7 2 . Ballistic Gun 10 | 1 1 3 3 2 . Ballistic Cannon 7 | . . . . 5 2 Launcher 6 | . 2 1 . 2 1 Special Weapon . | . . . . . . Impact Weapon . | . . . . . . Slashing Weapon 1 | . . . . . 1 Piercing Weapon . | . . . . . . Special Melee Weapon . | . . . . . . Unidentified Prototypes 1 | . . . 1 . . Parts Lost 36 | . . 2 5 23 6 Power 8 | . . . 1 5 2 Propulsion 13 | . . . 2 7 4 Utility 5 | . . . 1 4 . Weapon 10 | . . 2 1 7 . Highest Loss Streak 6 | . . 1 3 6 4 To Critical Strikes . | . . . . . . Average Slot Usage (%) 83 | . 89 87 85 74 85 Engine 8 | . 14 11 14 7 1 Core 1 | . . . 2 3 1 Leg 22 | . 28 21 22 13 29 Device 11 | . . 11 9 11 15 Storage 9 | . 17 21 12 3 . Processor 3 | . . . 5 10 . Protection 4 | . . . . . 15 Energy Gun 7 | . 14 13 5 9 . Energy Cannon 1 | . . . 6 1 . Ballistic Gun 3 | . 5 6 5 1 . Ballistic Cannon 5 | . . . . 4 14 Launcher 2 | . 8 2 . 1 5 Naked Turns . | . . . . . . Heaviest Build 41 | 7 22 26 38 41 41 Greatest Support 46 | 20 20 20 35 46 40 Greatest Overweight (x) 7 | . 1 2 1 7 2 Average Overweight (x) . | . . 1 . . . Largest Inventory Capacity 10 | 5 10 10 10 10 5 Average Capacity 7 | 5 9 10 10 7 5 Most Carried 10 | 5 5 10 10 10 5 Average Carried 6 | 2 4 6 9 6 4 Final Capacity 10 | 5 10 10 10 5 5 Final Carried 10 | 2 5 10 9 5 5 Class Distribution -------------------- 61% | Mutant 16% | Tank 10% | Skirmisher 6% | Scavenger-Tank 3% | Scavenger-Skirmisher Dominant Class ---------------- Mutant | -10/Materials Mutant | -9/Materials Mutant | -8/Materials Skirmisher | -7/Factory Tank | -7/Lower Caves Resources | -11 -10 -9 -8 -7 -7 ----------- Run | Yrd Mat Mat Mat Fac Low Matter Collected 2137 | 206 176 233 340 766 416 Remotely . | . . . . . . Salvage Created 2679 | . 264 382 574 1246 213 Parts 142 | . 17 20 35 63 7 Haulers Intercepted 1 | . 1 . . . . Recyclers Shooed 4 | . 1 1 . 2 . Parts Field Recycled . | . . . . . . Retrieved Matter . | . . . . . . Parts Self-Destructed 5 | . . . . . 5 Prevented . | . . . . . . Kills | -11 -10 -9 -8 -7 -7 ------- Run | Yrd Mat Mat Mat Fac Low Combat Hostiles Destroyed 59 | . 9 9 10 22 9 Guns 22 | . 2 8 5 7 . Cannons 12 | . . . 3 8 1 AOE 25 | . 7 1 2 7 8 Classes Destroyed 10 | . 4 2 2 2 . Worker 2 | . . . 1 1 . Builder 8 | . 2 . . 6 . Hauler 1 | . 1 . . . . Recycler 4 | . . 1 . 3 . Watcher 5 | . . . 4 1 . Swarmer 10 | . 3 3 3 . 1 Grunt 36 | . 6 3 5 15 7 Brawler 3 | . . . . 2 1 Sentry 7 | . . 3 2 2 . Programmer 3 | . . . . 3 . Best Kill Streak 10 | . 10 4 4 9 4 Combat Bots Only 7 | . 7 3 3 4 4 Max Kills in Single Turn 4 | . 3 2 2 4 3 Gunslinging . | . . . . . . Exploded 3 | . 2 1 2 3 3 Melee . | . . . . . . Uniques/NPCs Destroyed . | . . . . . . Combat | -11 -10 -9 -8 -7 -7 -------- Run | Yrd Mat Mat Mat Fac Low Hostile Shots Fired 516 | . 25 74 80 279 58 Missed 175 | . 11 27 27 91 19 Damage Taken 5283 | . 146 561 1025 2672 879 Core 1011 | . 37 128 138 616 92 Absorbed by Shields . | . . . . . . Regen/Repaired (Parts) 293 | . . 135 57 101 . Core Remaining (%) 81 | 100 85 68 74 . . Volleys Fired 197 | . 16 27 48 84 22 Largest 3 | . 2 2 2 3 2 Hottest 199 | . 80 90 128 199 96 Shots Fired 395 | . 27 54 92 193 29 Gun 211 | . 18 53 51 89 . Cannon 156 | . . . 41 96 19 Launcher 28 | . 9 1 . 8 10 Special . | . . . . . . Kinetic 191 | . 3 23 42 104 19 Thermal 134 | . 15 30 20 69 . Explosive 28 | . 9 1 . 8 10 Electromagnetic 42 | . . . 30 12 . Robot Hit Streak 14 | . 3 14 5 13 11 Robot Miss Streak 7 | . 2 1 4 7 2 Penetration Max 1 | . . . . 1 . Secondary Targets 3 | . . 3 . . . Max Gunslinging Chain 1 | . . 1 . . . Shots Hit Robots 233 | . 14 39 54 106 20 Core Hits 129 | . 17 18 24 50 20 Critical Kills . | . . . . . . Critical Parts Destroyed . | . . . . . . Critical Strikes 15 | . 2 1 . 10 2 Burn 6 | . 2 1 . 3 . Blast 9 | . . . . 7 2 Melee Attacks . | . . . . . . Impact . | . . . . . . Slashing . | . . . . . . Piercing . | . . . . . . Sneak Attacks . | . . . . . . Combat Hostiles . | . . . . . . Follow-up Attacks . | . . . . . . Damage Inflicted 7320 | . 658 616 1272 3325 1449 Guns 2150 | . 120 492 459 1079 . Cannons 2467 | . . . 626 1482 359 Explosions 2697 | . 538 124 187 758 1090 Melee . | . . . . . . Ramming 6 | . . . . 6 . Kinetic 2393 | . 7 194 375 1458 359 Thermal 1810 | . 113 298 415 984 . Explosive 2510 | . 538 124 . 758 1090 Electromagnetic 601 | . . . 482 119 . Impact . | . . . . . . Slashing . | . . . . . . Piercing . | . . . . . . Highest Corruption 15 | . . . . 14 15 Average Corruption 12 | . . . . 7 14 Corruption Purged . | . . . . . . Corruption Blocked . | . . . . . . Effects 72 | . . . . 15 57 Message Errors 13 | . . . . 3 10 Matter Fused 21 | . . . . 5 16 Heat Flow Errors 9 | . . . . 1 8 Energy Discharges 10 | . . . . 2 8 Parts Rejected 1 | . . . . . 1 Parts Fused 1 | . . . . 1 . Data Loss (minor) 5 | . . . . 1 4 Data Loss (major) 4 | . . . . . 4 Misfires 3 | . . . . . 3 Alerts 4 | . . . . 1 3 Weapon Failures 1 | . . . . 1 . Overload Shots . | . . . . . . Overflow Damage 329 | . 22 . 88 209 10 Projectiles 176 | . . . 51 125 . Explosions 153 | . 22 . 37 84 10 Melee . | . . . . . . Knockbacks 17 | . . . . 14 3 Impact . | . . . . . . Kinetic 16 | . . . . 13 3 Secondary 1 | . . . . 1 . Self-Inflicted Damage 244 | . 23 5 87 27 102 Shots 9 | . 2 1 2 2 2 Rammed . | . . . . . . Targets Rammed 3 | . . . . 3 . Kicked 3 | . . . . 3 . Crushed . | . . . . . . Highest Temperature 336 | . 76 33 249 336 227 Average Temperature 86 | . 27 7 85 111 79 Received Heat Transfer 1725 | . 30 210 360 828 297 Effects 1 | . . . . 1 . Energy Bleed 1 | . . . . 1 . Siege Activations . | . . . . . . Robots Corrupted . | . . . . . . Combat Hostiles . | . . . . . . Parts Fried 4 | . . . 4 . . Impact Corruptions . | . . . . . . Robots Melted . | . . . . . . Combat Hostiles . | . . . . . . Parts Melted 2 | . . 2 . . . Heat Transferred 3975 | . 481 889 607 1998 . Parts Sabotaged . | . . . . . . Parts Stolen . | . . . . . . Parts Stripped . | . . . . . . Power Chain Reactions 3 | . . . 3 . . Alert | -11 -10 -9 -8 -7 -7 ------- Run | Yrd Mat Mat Mat Fac Low Peak Influence 337 | . 309 333 227 337 . Initial 130 | . . 130 32 35 . Average 131 | . 165 142 91 151 . Maximum Alert Level 1 | . 1 1 1 1 . Low Security (%) 76 | 100 47 82 94 62 . Level 1 23 | . 52 17 5 37 . Level 2 . | . . . . . . Level 3 . | . . . . . . Level 4 . | . . . . . . Level 5 . | . . . . . . High Security . | . . . . . . Max Security . | . . . . . . Squads Dispatched 9 | . 2 1 . 6 . Investigation 1 | . 1 . . . . Extermination 2 | . . . . 2 . Reinforcement 5 | . 1 1 . 3 . Assault . | . . . . . . Garrison 1 | . . . . 1 . Intercept . | . . . . . . Searches Triggered . | . . . . . . Construction Impeded 2 | . . . . 2 . Haulers Reinforced . | . . . . . . Active Scanning Responses . | . . . . . . Cargo Convoy Interrupts . | . . . . . . Stealth | -11 -10 -9 -8 -7 -7 --------- Run | Yrd Mat Mat Mat Fac Low Distress Signals 2 | . . 1 1 . . Communications Jammed . | . . . . . . Distress Signals . | . . . . . . Times Spotted 78 | . 11 10 19 26 12 Peak Tracking Total 5 | . 2 4 4 4 5 Tactical Retreats 5 | . . . 1 1 3 Traps | -11 -10 -9 -8 -7 -7 ------- Run | Yrd Mat Mat Mat Fac Low Traps Triggered 3 | . 1 . 1 1 . Indirectly . | . . . . . . Trap Hack Attempts . | . . . . . . Triggered . | . . . . . . Disarmed . | . . . . . . Reprogrammed . | . . . . . . Reused . | . . . . . . Traps Extracted . | . . . . . . Installed . | . . . . . . Triggered . | . . . . . . Machines | -11 -10 -9 -8 -7 -7 ---------- Run | Yrd Mat Mat Mat Fac Low Machines Disabled 9 | . 1 . 1 6 1 Max in Single Turn 2 | . 1 . 1 2 1 Machines Repaired . | . . . . . . Machines Dismantled . | . . . . . . Machines Sabotaged . | . . . . . . Overloaded Fab Kills . | . . . . . . Hacking | -11 -10 -9 -8 -7 -7 --------- Run | Yrd Mat Mat Mat Fac Low Machines Accessed 10 | . 1 5 2 1 1 Terminals 4 | . . 3 1 . . Fabricators . | . . . . . . Repair Stations 3 | . . 1 1 1 . Recycling Units 1 | . 1 . . . . Scanalyzers 1 | . . 1 . . . Garrison Access . | . . . . . . Total Hacks 19 | . 1 12 3 2 1 Successful 17 | . 1 11 2 2 1 Failed 2 | . . 1 1 . . Catastrophic . | . . . . . . Database Lockouts . | . . . . . . Manual . | . . . . . . Terminals 5 | . . 4 1 . . Fabricators . | . . . . . . Repair Stations 8 | . . 4 2 2 . Recycling Units 1 | . 1 . . . . Scanalyzers 4 | . . 4 . . . Garrison Access . | . . . . . . Terminal Hacks 4 | . . 3 . . 1 Record 1 | . . 1 . . . Open Door 1 | . . . . . 1 Locate Traps 1 | . . 1 . . . Zone Layout 1 | . . 1 . . . Fabricator Hacks . | . . . . . . Repair Station Hacks 8 | . . 4 2 2 . Scan Component 4 | . . 2 1 1 . Repair 4 | . . 2 1 1 . Recycling Unit Hacks 1 | . 1 . . . . Report Inventory 1 | . 1 . . . . Scanalyzer 4 | . . 4 . . . Insert Component 2 | . . 2 . . . Analyze 2 | . . 2 . . . Garrison Access Hacks . | . . . . . . Unauthorized Hacks . | . . . . . . Terminals . | . . . . . . Fabricators . | . . . . . . Repair Stations . | . . . . . . Recycling Units . | . . . . . . Scanalyzers . | . . . . . . Garrison Access . | . . . . . . Data Cores Recovered . | . . . . . . Used . | . . . . . . Hacking Detections 6 | . 1 3 1 1 . Full Trace Events 1 | . . 1 . . . Feedback Events . | . . . . . . Feedback Blocked . | . . . . . . Robot Schematics Acquired . | . . . . . . Robots Built . | . . . . . . Authchips . | . . . . . . Time . | . . . . . . Total Robot Build Rating . | . . . . . . Part Schematics Acquired 1 | . . 1 . . . Parts Built . | . . . . . . Authchips . | . . . . . . Time . | . . . . . . Total Part Build Rating . | . . . . . . Parts Repaired 4 | . . 2 1 1 . Time 141 | . . 52 51 38 . Parts Recycled . | . . . . . . Recycled Matter . | . . . . . . Retrieved Matter . | . . . . . . Retrieved Components . | . . . . . . Parts Scanalyzed 2 | . . 2 . . . Part Schematics Acquired 1 | . . 1 . . . Parts Damaged . | . . . . . . Bothacking | -11 -10 -9 -8 -7 -7 ------------ Run | Yrd Mat Mat Mat Fac Low Used RIF Installer . | . . . . . . Robots Hacked . | . . . . . . Non-combat . | . . . . . . Combat . | . . . . . . Robot Hacks Applied . | . . . . . . Relay Couplers Released . | . . . . . . Fabnet Peak Effective % . | . . . . . . Robots Rewired . | . . . . . . Allies Hacked . | . . . . . . Hacks Repelled . | . . . . . . Allies | -11 -10 -9 -8 -7 -7 -------- Run | Yrd Mat Mat Mat Fac Low Total Allies . | . . . . . . Largest Group . | . . . . . . Highest-Rated Group . | . . . . . . Highest-Rated Ally . | . . . . . . Total Orders . | . . . . . . Ally Attacks . | . . . . . . Total Damage . | . . . . . . Kills . | . . . . . . Allies Corrupted . | . . . . . . Allies Melted . | . . . . . . Intel | -11 -10 -9 -8 -7 -7 ------- Run | Yrd Mat Mat Mat Fac Low Robot Analysis Total . | . . . . . . Derelict Logs Recovered 1 | . . . . . 1 Drone Launches . | . . . . . . Drone Recoveries . | . . . . . . Exploration | -11 -10 -9 -8 -7 -7 ------------- Run | Yrd Mat Mat Mat Fac Low Turns Passed 4779 | 62 297 1104 855 1076 1385 Spaces Moved 2190 | 46 179 501 351 415 698 Core 26 | 11 . . . 15 . Treads 80 | . . . . 80 . Legs 2084 | 35 179 501 351 320 698 Wheels . | . . . . . . Hover . | . . . . . . Flight . | . . . . . . Fastest Speed 50 | 50 120 120 120 100 120 Average Speed 176 | 103 132 190 175 167 188 Slowest Speed 400 | 120 190 260 190 400 260 Overloaded Moves . | . . . . . . Propulsion Burnouts . | . . . . . . Robots Hopped 1 | . . . . . 1 Cave-ins Triggered 1 | . . . . 1 . Exploration Rate (%) 29 | 4 30 39 26 12 68 Regions Visited 5 Branch Regions 1 Pre-discovered Areas . | . . . . . . Known Exits Taken . | . . . . . . Unknown Exits Taken 5 | 1 1 1 1 1 . Scrap Searched 3 | . . . . . 3 Spaces Dug . | . . . . . . Terrain Destroyed 244 | . 52 3 13 73 103 Melee . | . . . . . . Projectile 26 | . . . 2 18 6 AOE 218 | . 52 3 11 55 97 Terrain Rammed . | . . . . . . Walls Destroyed . | . . . . . . Machines Disabled . | . . . . . . Actions | -11 -10 -9 -8 -7 -7 --------- Run | Yrd Mat Mat Mat Fac Low Total 2733 | 60 210 599 496 629 739 Wait 144 | 4 5 32 51 44 8 Move 2183 | 45 178 500 350 414 696 Hop 1 | . . . . . 1 Pick Up 70 | 6 5 16 12 30 1 Fast Attach 15 | 1 . 1 4 6 3 Attach 45 | 4 2 7 5 27 . Detach 2 | . . . 1 1 . Swap 44 | . 4 9 15 12 4 Drop 29 | . . 7 10 8 4 Fire 197 | . 16 27 48 84 22 Melee . | . . . . . . Ram . | . . . . . . Kick 3 | . . . . 3 . Crush . | . . . . . . Escape Stasis . | . . . . . . Rewire . | . . . . . . Trap . | . . . . . . Miscellaneous . | . . . . . . Route ------- -11/Scrapyard -10/Materials -9/Materials (discovered 2 exits: *Mat / [*Min]) -8/Materials -7/Factory -7/Lower Caves (discovered 1 exit: Low) History --------- Turn | Location | Event 10 | -11/Scrapyard | Discovered new exit (range 16) 63 | -11/Scrapyard | Entered Materials 243 | -10/Materials | Destroyed 7 combat bots 261 | -10/Materials | Discovered new exit (range 10) 316 | -10/Materials | Build established: Mutant 360 | -10/Materials | Entered another Materials area 360 | -9/Materials | Evolved 2 slots: Propulsion x1, Utility x1 517 | -9/Materials | Discovered new exit (range 21) 649 | -9/Materials | Discovered new exit (range 10) 776 | -9/Materials | Repaired Aluminum Leg 804 | -9/Materials | Repaired Aluminum Leg 1464 | -9/Materials | Entered another Materials area 1464 | -8/Materials | Evolved 2 slots: Power x1, Propulsion x1 1638 | -8/Materials | Repaired Imp. Assault Rifle 1810 | -8/Materials | Lost 3 parts (1p1n1u) 2281 | -8/Materials | Discovered new exit (range 16) 2319 | -8/Materials | Entered Factory 2319 | -7/Factory | Evolved 2 slots: Utility x1, Weapon x1 2711 | -7/Factory | Repaired Carbon-fiber Leg 2904 | -7/Factory | Garrison activated, responded to threat 2950 | -7/Factory | Lost 6 parts (1p1n1u3w) 2984 | -7/Factory | Crushed by falling debris 3015 | -7/Factory | Lost 4 parts (1p1n1u1w) 3123 | -7/Factory | Core integrity fell below 50% 3136 | -7/Factory | Lost 4 parts (2p2n) 3264 | -7/Factory | System corruption reached 10% 3266 | -7/Factory | Core integrity fell below 20% 3388 | -7/Factory | Discovered new exit (range 5) 3395 | -7/Factory | Entered Lower Caves 3538 | -7/Lower Caves | Identified exit to Lower Caves 3553 | -7/Lower Caves | Found Prototype Device 3946 | -7/Lower Caves | Build established: Tank 4717 | -7/Lower Caves | Build established: Mutant 4749 | -7/Lower Caves | Attracted the attention of an 0b10 outpost 4780 | -7/Lower Caves | Destroyed by Y-64 Sentinel with Wave Gun Last Messages --------------- 04760_ Destroyed Aluminum Leg. 04760_ S-27 Virus destroyed. 04761_ Slug penetrates Wall. 04764_ Aluminum Leg destroyed. 04764_ System corrupted by crushing effect (+1). 04766_ Critical hit (Burn: +37). 04766_ Penetrated by Slug. 04767_ Aluminum Leg destroyed. 04767_ B-48 Gladiator Lgt. Treads blasted off. 04769_ Nuclear Core destroyed. 04769_ Penetrated by Slug. 04771_ B-48 Gladiator destroyed. 04771_ Machine disabled. 04771_ Penetrated by Slug. 04773_ System corrupted: Matter fused (-6). 04774_ G-47 Trooper destroyed. 04774_ Penetrated by Slug. 04777_ Aluminum Leg fries itself beyond repair. 04777_ Slug penetrates Wall. 04780_ Particle Gun fries itself beyond repair. Map ----- +----------------------------------------------------+ | ###??#????????##### #?# ##### | | # ### # ? ????????####?# #?# #### | | ###### ## # # ????????# ### ### ##?# | | ??## ## ## #?????## ## ###?## | | ??# ####### # ####??????## ## # #?## # | | ?### ##??## ##?#####????## ### ### # | | ## # #### #### #????# ##?# # ## | | # ## # # ## # #????# ###??## # | | # # ##########?????## ## # | | ## ### ##?????????## # | | # ###### #??????????## | | ## # ##????# ##??????????## # | | # ### # ##?????# ##??????????# # | | # ## # #??????# #??????????###### | | # ## ##??????# #???????????????? | | ### # #####???????# #???????????????? | | # #?# ##???????????# #???????????????? | | #?# #????????????# #???????????????? | | # ##?## #?####???????? #????????????????? | | # ##???# ### ##??###### ###??????????????? | | # !#????# ## #??# #?? ??????????? | | ## #????# ## ##?# # ?????????? | | ?# [###??# #### % ?????? | | ?# #### ## Y ?????? | | ?# # ##### ## = % % # ????? | | ?#### ## ## @% * ?????? | | ????### ## #???? ?????? | | ??????# ## #???????????? | | ??????## " # ?????????? | | ???????#### #"l # ?????????? | | ??????????###### ;;## #""""""# ?????????? | | ???????????????# ###?# #?######? ????????? | | ??????????????# ##???# ?????????### ????????? | | ??????????????# ##????####????????????????????? | | ??????????????## ##?????????????????????????????? | | ???????????????####??????????????????????????????? | | ?????????????????????????????????????????????????? | | ?????????????????????????????????????????????????? | | ?????????????????????????????????????????????????? | | ?????????????????????????????????????????????????? | | ?????????????????????????????????????????????????? | | ?????????????????????????????????????????????????? | | ?????????????????????????????????????????????????? | | ?????????????????????????????????????????????????? | | ?????????????????????????????????????????????????? | | ?????????????????????????????????????????????????? | | ?????????????????????????????????????????????????? | | ?????????????????????????????????????????????????? | | ?????????????????????????????????????????????????? | | ?????????????????????????????????????????????????? | +----------------------------------------------------+ Best States ------------- Heat Dissipation 75 Energy Generation 27 Energy Capacity 555 Matter Stores 300 Matter Capacity 300 Sight Range 20 Terrain Scan Range 16 Terrain Scan Density 110 Additional Mass Support 6 Armor Coverage 450 Evasion (%) 55 Recoil Reduction 1 Item Schematics ----------------- Cld. Ion Engine | -9/Materials | Scanalyzed Robot Schematics ------------------ None Fabricated ------------ Nothing Alien Tech Used ----------------- None Achievements -------------- Omniscient Cartographer Challenges ------------ None Game ------ Seed PointAlloyBank Manual? 0 Play Time 01:04:54 Cumulative 32.0 hours Start 2024.04.09 @ 20:43:14 End 2024.04.09 @ 21:49:32 Sessions 1 Manual Loads 0 Difficulty Rogue Special Mode None Game No. 24 Rogue 10 Adventurer 14 Explorer 0 Win Type - Total 0 Types 0/0/0/0/0/0/0/0/0 Lore% 16 Gallery% 28 Achievement% 19 Wizard Run 0 Options --------- Layout 2 ASCII 0 Keyboard 0 Movement Mouse Keybinds 0 Fullscreen 2 Font 36/Smallcaps Map View 53x54 Zoom Use 31% Tactical HUD 1 Map Filters NONE Filters NONE Steam 1 RUN: d250b916-7831-4034-88e4-5f8dcfd5ebdb